Workbook

Sheet Sheet1
C1: j | G1: Matrix Rank | H1: Weights (Xi) | I1: Normalization | J1: Coeff. | K1: Enginvalue
C2: A | D2: B | E2: C | F2: D
A3: i | B3: =C2 -> A | C3: 1 | D3: 4 | E3: 3 | F3: 7 | G3: =COUNT(C3:C6) -> 4 | H3: =(C3*D3*E3*F3)^(1/$G$3) -> 3.027400104 | I3: =H3/$H$7 -> 0.581452162 | J3: =I3/$I$3 -> 1 | K3: =H3*C7/$H$7 -> 1.003697184
B4: =D2 -> B | C4: =1/D3 -> 0.25 | D4: 1 | E4: 1 | F4: 2 | H4: =(C4*D4*E4*F4)^(1/$G$3) -> 0.8408964153 | I4: =H4/$H$7 -> 0.1615052593 | J4: =I4/$I$3 -> 0.2777619034 | K4: =H4*D7/$H$7 -> 1.049784185
B5: =E2 -> C | C5: =1/E3 -> 0.3333333333 | D5: =1/E4 -> 1 | E5: 1 | F5: 2 | H5: =(C5*D5*E5*F5)^(1/$G$3) -> 0.9036020036 | I5: 0.1735486954 | J5: 0.2984745896 | K5: =H5*E7/$H$7 -> 0.9545178249
B6: =F2 -> D | C6: =1/F3 -> 0.1428571429 | D6: =1/F4 -> 0.5 | E6: =1/F5 -> 0.5 | F6: 1 | H6: =(C6*D6*E6*F6)^(1/$G$3) -> 0.4347208719 | I6: 0.08349388326 | J6: 0.1435954473 | K6: =H6*F7/$H$7 -> 1.001926599
B7: Total Yj | C7: =SUM(C3:C6) -> 1.726190476 | D7: =SUM(D3:D6) -> 6.5 | E7: 5.5 | F7: 12 | H7: =SUM(H3:H6) -> 5.206619395 | I7: 1 | J7: lmax | K7: =SUM(K3:K6) -> 4.009925794
J8: CI | K8: =(K7-G3)/(G3-1) -> 0.003308597912
J9: RI | K9: 0.89
J10: CR | K10: =K8/K9 -> 0.003717525744
